[Event "Titled Tuesday Blitz March 07 Early 2023"]
[White "Reprintsev, Alexander"]
[Black "Costachi, Mihnea"]
[WhiteFideId "14100541"]
[BlackFideId "1217518"]
[WhiteElo "2229"]
[BlackElo "2456"]
[Result "0-1"]
[Round "10"]
[TimeControl "180+2"]
[Date "2023.03.07"]
[WhiteClock "0:01:43"]
[BlackClock "0:01:05"]

1. e4 {[%clk 0:02:59]}  c5 {[%clk 0:03:00]} 2. b3 {[%clk 0:02:57]}  e6 {[%clk 0:02:55]} 3. Qe2 {[%clk 0:02:56]}  Nc6 {[%clk 0:02:51]} 4. Bb2 {[%clk 0:02:56]}  e5 {[%clk 0:02:51]} 5. f4 {[%clk 0:02:56]}  d6 {[%clk 0:02:47]} 6. Nc3 {[%clk 0:02:55]}  Nd4 {[%clk 0:02:47]} 7. Qd3 {[%clk 0:02:55]}  g6 {[%clk 0:02:38]} 8. Nf3 {[%clk 0:02:49]}  Bg7 {[%clk 0:02:39]} 9. O-O-O {[%clk 0:02:48]}  Bg4 {[%clk 0:02:33]} 10. Ne2 {[%clk 0:02:46]}  Bxf3 {[%clk 0:02:30]} 11. gxf3 {[%clk 0:02:46]}  Ne7 {[%clk 0:02:30]} 12. Nxd4 {[%clk 0:02:44]}  cxd4 {[%clk 0:02:30]} 13. c3 {[%clk 0:02:44]}  dxc3 {[%clk 0:01:46]} 14. dxc3 {[%clk 0:02:43]}  Bh6 {[%clk 0:01:47]} 15. Qxd6 {[%clk 0:02:38]}  Bxf4+ {[%clk 0:01:47]} 16. Kb1 {[%clk 0:02:38]}  Qxd6 {[%clk 0:01:46]} 17. Rxd6 {[%clk 0:02:38]}  O-O {[%clk 0:01:47]} 18. h4 {[%clk 0:02:31]}  Rfd8 {[%clk 0:01:45]} 19. Ba3 {[%clk 0:02:22]}  Nc6 {[%clk 0:01:37]} 20. Bb5 {[%clk 0:02:17]}  Rxd6 {[%clk 0:01:37]} 21. Bxd6 {[%clk 0:02:16]}  Rd8 {[%clk 0:01:37]} 22. Bxc6 {[%clk 0:02:10]}  bxc6 {[%clk 0:01:38]} 23. Bc5 {[%clk 0:02:10]}  a6 {[%clk 0:01:39]} 24. h5 {[%clk 0:02:01]}  Rd3 {[%clk 0:01:36]} 25. hxg6 {[%clk 0:02:00]}  fxg6 {[%clk 0:01:36]} 26. c4 {[%clk 0:01:56]}  Rxf3 {[%clk 0:01:21]} 27. Rd1 {[%clk 0:01:55]}  h5 {[%clk 0:01:20]} 28. Rd6 {[%clk 0:01:54]}  Kg7 {[%clk 0:01:20]} 29. Rxc6 {[%clk 0:01:53]}  h4 {[%clk 0:01:20]} 30. Rc7+ {[%clk 0:01:49]}  Kh6 {[%clk 0:01:17]} 31. Rc8 {[%clk 0:01:49]}  h3 {[%clk 0:01:14]} 32. Be7 {[%clk 0:01:46]}  h2 {[%clk 0:01:05]} 33. Rh8+ {[%clk 0:01:45]}  Kg7 {[%clk 0:01:05]} 34. Rh4 {[%clk 0:01:45]}  Rf1+ {[%clk 0:01:04]} 35. Kc2 {[%clk 0:01:44]}  h1=Q {[%clk 0:01:05]} 36. Rxh1 {[%clk 0:01:44]}  Rxh1 {[%clk 0:01:06]} 37. b4 {[%clk 0:01:44]}  Kf7 {[%clk 0:01:06]} 38. Bd8 {[%clk 0:01:43]}  Ke8 {[%clk 0:01:05]} 0-1


[Site "https://www.chess.com"]

[Event "Titled Tuesday Blitz March 07 Early 2023"]
[White "Cherniaiev, Tykhon"]
[Black "Fernandez Garcia, Gumersindo"]
[WhiteFideId "14182360"]
[BlackFideId "24516740"]
[WhiteElo "2450"]
[BlackElo "2093"]
[Result "1-0"]
[Round "10"]
[TimeControl "180+2"]
[Date "2023.03.07"]
[WhiteClock "0:01:03"]
[BlackClock "0:00:14"]

1. Nf3 {[%clk 0:03:00]}  d5 {[%clk 0:02:57]} 2. d4 {[%clk 0:02:59]}  Nf6 {[%clk 0:02:56]} 3. c4 {[%clk 0:03:00]}  e6 {[%clk 0:02:55]} 4. Nc3 {[%clk 0:03:00]}  Be7 {[%clk 0:02:55]} 5. Bg5 {[%clk 0:02:56]}  h6 {[%clk 0:02:54]} 6. Bxf6 {[%clk 0:02:56]}  Bxf6 {[%clk 0:02:53]} 7. cxd5 {[%clk 0:02:57]}  exd5 {[%clk 0:02:54]} 8. e3 {[%clk 0:02:58]}  c6 {[%clk 0:02:54]} 9. Be2 {[%clk 0:02:59]}  O-O {[%clk 0:02:55]} 10. O-O {[%clk 0:02:59]}  Re8 {[%clk 0:02:52]} 11. b4 {[%clk 0:02:59]}  b5 {[%clk 0:02:48]} 12. a4 {[%clk 0:02:56]}  bxa4 {[%clk 0:02:42]} 13. Qxa4 {[%clk 0:02:57]}  Bb7 {[%clk 0:02:40]} 14. Rfc1 {[%clk 0:02:47]}  Nd7 {[%clk 0:02:37]} 15. b5 {[%clk 0:02:44]}  Nb6 {[%clk 0:02:33]} 16. Qb3 {[%clk 0:02:36]}  Qd7 {[%clk 0:02:25]} 17. Na4 {[%clk 0:02:28]}  Nxa4 {[%clk 0:02:12]} 18. Qxa4 {[%clk 0:02:03]}  Rec8 {[%clk 0:02:07]} 19. bxc6 {[%clk 0:02:01]}  Bxc6 {[%clk 0:02:06]} 20. Qa5 {[%clk 0:01:56]}  Bd8 {[%clk 0:01:59]} 21. Qd2 {[%clk 0:01:53]}  Bb5 {[%clk 0:01:20]} 22. Ne5 {[%clk 0:01:29]}  Qe8 {[%clk 0:01:20]} 23. Bf3 {[%clk 0:01:19]}  Rxc1+ {[%clk 0:00:27]} 24. Qxc1 {[%clk 0:01:16]}  Bf6 {[%clk 0:00:18]} 25. Bxd5 {[%clk 0:01:12]}  Bxe5 {[%clk 0:00:14]} 26. Bxa8 {[%clk 0:01:13]}  Qxa8 {[%clk 0:00:15]} 27. dxe5 {[%clk 0:01:13]}  a5 {[%clk 0:00:16]} 28. Qc5 {[%clk 0:01:10]}  Qa6 {[%clk 0:00:14]} 29. Qd6 {[%clk 0:01:04]}  a4 {[%clk 0:00:14]} 30. Qxa6 {[%clk 0:01:03]} 1-0


[Site "https://www.chess.com"]

[Event "Titled Tuesday Blitz March 07 Early 2023"]
[White "Rastbod, Ali"]
[Black "Hirneise, Jens"]
[WhiteFideId "12567477"]
[BlackFideId "24614734"]
[WhiteElo "2211"]
[BlackElo "2345"]
[Result "1-0"]
[Round "10"]
[TimeControl "180+2"]
[Date "2023.03.07"]
[WhiteClock "0:01:05"]
[BlackClock "0:01:46"]

1. Nf3 {[%clk 0:02:27]}  c5 {[%clk 0:02:57]} 2. c4 {[%clk 0:02:26]}  b6 {[%clk 0:02:56]} 3. g3 {[%clk 0:02:20]}  Bb7 {[%clk 0:02:56]} 4. Bg2 {[%clk 0:02:20]}  Nf6 {[%clk 0:02:56]} 5. O-O {[%clk 0:02:17]}  e6 {[%clk 0:02:56]} 6. Nc3 {[%clk 0:02:16]}  Be7 {[%clk 0:02:56]} 7. d4 {[%clk 0:02:15]}  cxd4 {[%clk 0:02:55]} 8. Qxd4 {[%clk 0:02:16]}  O-O {[%clk 0:02:54]} 9. Rd1 {[%clk 0:02:14]}  Nc6 {[%clk 0:02:51]} 10. Qf4 {[%clk 0:02:12]}  Rc8 {[%clk 0:02:45]} 11. b3 {[%clk 0:02:01]}  Ba8 {[%clk 0:02:39]} 12. Bb2 {[%clk 0:01:59]}  Qc7 {[%clk 0:02:34]} 13. Qxc7 {[%clk 0:01:46]}  Rxc7 {[%clk 0:02:35]} 14. Nb5 {[%clk 0:01:46]}  Rb7 {[%clk 0:02:32]} 15. Ne5 {[%clk 0:01:28]}  Rc8 {[%clk 0:02:22]} 16. Nd6 {[%clk 0:01:27]}  Bxd6 {[%clk 0:02:21]} 17. Rxd6 {[%clk 0:01:28]}  Rbc7 {[%clk 0:02:20]} 18. Rad1 {[%clk 0:01:22]}  Nxe5 {[%clk 0:02:12]} 19. Bxe5 {[%clk 0:01:13]}  Bxg2 {[%clk 0:02:12]} 20. Kxg2 {[%clk 0:01:13]}  Rc5 {[%clk 0:02:08]} 21. Bxf6 {[%clk 0:01:09]}  gxf6 {[%clk 0:02:08]} 22. Rxd7 {[%clk 0:01:10]}  Ra5 {[%clk 0:02:08]} 23. a4 {[%clk 0:01:08]}  a6 {[%clk 0:02:05]} 24. Rd8+ {[%clk 0:01:09]}  Rxd8 {[%clk 0:02:03]} 25. Rxd8+ {[%clk 0:01:10]}  Kg7 {[%clk 0:02:03]} 26. Rb8 {[%clk 0:01:11]}  b5 {[%clk 0:02:00]} 27. cxb5 {[%clk 0:01:02]}  axb5 {[%clk 0:01:53]} 28. Rxb5 {[%clk 0:01:03]}  Rxb5 {[%clk 0:01:46]} 29. axb5 {[%clk 0:01:03]}  Kf8 {[%clk 0:01:47]} 30. b6 {[%clk 0:01:04]}  Ke8 {[%clk 0:01:47]} 31. b7 {[%clk 0:01:05]}  Kd7 {[%clk 0:01:46]} 32. b8=Q {[%clk 0:01:05]} 1-0


[Site "https://www.chess.com"]

[Event "Titled Tuesday Blitz March 07 Early 2023"]
[White "Mamedov, Edgar"]
[Black "Nur-Mukhametova, Alisa"]
[WhiteFideId "13739980"]
[BlackFideId "54117739"]
[WhiteElo "2330"]
[BlackElo "1903"]
[Result "1-0"]
[Round "10"]
[TimeControl "180+2"]
[Date "2023.03.07"]
[WhiteClock "0:00:04"]
[BlackClock "0:00:06"]

1. d4 {[%clk 0:02:59]}  Nf6 {[%clk 0:02:59]} 2. Bg5 {[%clk 0:02:58]}  d5 {[%clk 0:02:57]} 3. e3 {[%clk 0:02:55]}  c5 {[%clk 0:02:53]} 4. Bxf6 {[%clk 0:02:53]}  exf6 {[%clk 0:02:53]} 5. Nc3 {[%clk 0:02:51]}  Be6 {[%clk 0:02:47]} 6. Nf3 {[%clk 0:02:49]}  Nc6 {[%clk 0:02:46]} 7. dxc5 {[%clk 0:02:49]}  Bxc5 {[%clk 0:02:45]} 8. Nb5 {[%clk 0:02:48]}  O-O {[%clk 0:02:39]} 9. Nbd4 {[%clk 0:02:47]}  Bg4 {[%clk 0:02:36]} 10. Be2 {[%clk 0:02:42]}  Rc8 {[%clk 0:02:26]} 11. c3 {[%clk 0:02:35]}  Qb6 {[%clk 0:02:17]} 12. Qb3 {[%clk 0:02:32]}  Bxd4 {[%clk 0:02:09]} 13. Nxd4 {[%clk 0:02:27]}  Nxd4 {[%clk 0:01:58]} 14. Qxb6 {[%clk 0:02:10]}  axb6 {[%clk 0:01:58]} 15. Bxg4 {[%clk 0:01:56]}  Nc2+ {[%clk 0:01:54]} 16. Kd2 {[%clk 0:01:55]}  Nxa1 {[%clk 0:01:51]} 17. Bxc8 {[%clk 0:01:54]}  Rxc8 {[%clk 0:01:51]} 18. Rxa1 {[%clk 0:01:54]}  Kf8 {[%clk 0:01:49]} 19. a4 {[%clk 0:01:50]}  Ke7 {[%clk 0:01:47]} 20. Ra3 {[%clk 0:01:49]}  Kd6 {[%clk 0:01:46]} 21. Rb3 {[%clk 0:01:48]}  Kc5 {[%clk 0:01:42]} 22. Rb4 {[%clk 0:01:44]}  h5 {[%clk 0:01:32]} 23. h4 {[%clk 0:01:43]}  Re8 {[%clk 0:01:27]} 24. Kd3 {[%clk 0:01:41]}  f5 {[%clk 0:01:21]} 25. f3 {[%clk 0:01:37]}  Re6 {[%clk 0:01:17]} 26. Rb5+ {[%clk 0:01:29]}  Kc6 {[%clk 0:01:17]} 27. Kd4 {[%clk 0:01:28]}  Rg6 {[%clk 0:00:51]} 28. Rxd5 {[%clk 0:01:18]}  Rxg2 {[%clk 0:00:51]} 29. Rxf5 {[%clk 0:01:17]}  Rxb2 {[%clk 0:00:38]} 30. Rxf7 {[%clk 0:01:13]}  Rg2 {[%clk 0:00:35]} 31. Rf5 {[%clk 0:01:00]}  g6 {[%clk 0:00:32]} 32. Rg5 {[%clk 0:00:54]}  Rd2+ {[%clk 0:00:07]} 33. Kc4 {[%clk 0:00:50]}  Rd6 {[%clk 0:00:08]} 34. f4 {[%clk 0:00:48]}  Re6 {[%clk 0:00:08]} 35. Kd3 {[%clk 0:00:45]}  Kd6 {[%clk 0:00:08]} 36. e4 {[%clk 0:00:43]}  Ke7 {[%clk 0:00:08]} 37. Rb5 {[%clk 0:00:37]}  Kf6 {[%clk 0:00:08]} 38. Ke3 {[%clk 0:00:35]}  Rc6 {[%clk 0:00:08]} 39. Rb3 {[%clk 0:00:32]}  Re6 {[%clk 0:00:07]} 40. c4 {[%clk 0:00:29]}  Rc6 {[%clk 0:00:07]} 41. Kd4 {[%clk 0:00:25]}  Rd6+ {[%clk 0:00:07]} 42. Kc3 {[%clk 0:00:24]}  Re6 {[%clk 0:00:08]} 43. Kd3 {[%clk 0:00:20]}  Rd6+ {[%clk 0:00:08]} 44. Ke2 {[%clk 0:00:20]}  Rc6 {[%clk 0:00:08]} 45. Kf3 {[%clk 0:00:18]}  Kf7 {[%clk 0:00:07]} 46. Rb5 {[%clk 0:00:16]}  Kg7 {[%clk 0:00:05]} 47. e5 {[%clk 0:00:13]}  Kf7 {[%clk 0:00:04]} 48. Ke3 {[%clk 0:00:12]}  Ke6 {[%clk 0:00:03]} 49. Kd4 {[%clk 0:00:12]}  Kf5 {[%clk 0:00:03]} 50. Kd5 {[%clk 0:00:12]}  Kxf4 {[%clk 0:00:03]} 51. e6 {[%clk 0:00:11]}  Kf5 {[%clk 0:00:03]} 52. e7 {[%clk 0:00:09]}  Re6 {[%clk 0:00:04]} 53. Rxb6 {[%clk 0:00:09]}  Rxe7 {[%clk 0:00:04]} 54. a5 {[%clk 0:00:04]}  Rd7+ {[%clk 0:00:04]} 55. Kc5 {[%clk 0:00:04]}  Kg4 {[%clk 0:00:05]} 56. Rxg6+ {[%clk 0:00:03]}  Kxh4 {[%clk 0:00:05]} 57. Kb6 {[%clk 0:00:03]}  Re7 {[%clk 0:00:04]} 58. c5 {[%clk 0:00:03]}  Kh3 {[%clk 0:00:04]} 59. c6 {[%clk 0:00:03]}  bxc6 {[%clk 0:00:04]} 60. a6 {[%clk 0:00:03]}  h4 {[%clk 0:00:03]} 61. a7 {[%clk 0:00:02]}  Rxa7 {[%clk 0:00:03]} 62. Kxa7 {[%clk 0:00:02]}  Kh2 {[%clk 0:00:04]} 63. Kb6 {[%clk 0:00:02]}  h3 {[%clk 0:00:04]} 64. Kc5 {[%clk 0:00:02]}  Kh1 {[%clk 0:00:05]} 65. Kd4 {[%clk 0:00:02]}  h2 {[%clk 0:00:05]} 66. Ke3 {[%clk 0:00:02]}  c5 {[%clk 0:00:05]} 67. Kf2 {[%clk 0:00:02]}  c4 {[%clk 0:00:05]} 68. Ra6 {[%clk 0:00:03]}  c3 {[%clk 0:00:06]} 69. Ra1# {[%clk 0:00:04]} 1-0


[Site "https://www.chess.com"]

[Event "Titled Tuesday Blitz March 07 Early 2023"]
[White "Leiva, Gianmarco"]
[Black "Andreev, Konstantin"]
[WhiteFideId "3804399"]
[BlackFideId "24239305"]
[WhiteElo "2345"]
[BlackElo "2106"]
[Result "0-1"]
[Round "10"]
[TimeControl "180+2"]
[Date "2023.03.07"]
[WhiteClock "0:00:07"]
[BlackClock "0:01:32"]

1. e4 {[%clk 0:03:00]}  c5 {[%clk 0:02:59]} 2. Nf3 {[%clk 0:03:01]}  e6 {[%clk 0:03:00]} 3. b3 {[%clk 0:03:01]}  Nc6 {[%clk 0:03:00]} 4. Bb2 {[%clk 0:03:01]}  Nge7 {[%clk 0:02:57]} 5. e5 {[%clk 0:02:56]}  d6 {[%clk 0:02:55]} 6. exd6 {[%clk 0:02:56]}  Qxd6 {[%clk 0:02:56]} 7. Na3 {[%clk 0:02:56]}  a6 {[%clk 0:02:55]} 8. Nc4 {[%clk 0:02:55]}  Qd8 {[%clk 0:02:55]} 9. a4 {[%clk 0:02:55]}  Nd5 {[%clk 0:02:50]} 10. g3 {[%clk 0:02:56]}  f6 {[%clk 0:02:50]} 11. Bg2 {[%clk 0:02:56]}  Be7 {[%clk 0:02:51]} 12. O-O {[%clk 0:02:54]}  O-O {[%clk 0:02:50]} 13. d4 {[%clk 0:02:47]}  cxd4 {[%clk 0:02:51]} 14. Nxd4 {[%clk 0:02:48]}  Nxd4 {[%clk 0:02:50]} 15. Qxd4 {[%clk 0:02:48]}  Nb4 {[%clk 0:02:40]} 16. Qxd8 {[%clk 0:02:33]}  Rxd8 {[%clk 0:02:40]} 17. Ba3 {[%clk 0:02:19]}  Kf7 {[%clk 0:02:35]} 18. Nb6 {[%clk 0:02:14]}  Rb8 {[%clk 0:02:33]} 19. c3 {[%clk 0:02:10]}  Nc6 {[%clk 0:02:24]} 20. Bxe7 {[%clk 0:02:05]}  Kxe7 {[%clk 0:02:23]} 21. Rad1 {[%clk 0:01:58]}  Bd7 {[%clk 0:02:23]} 22. b4 {[%clk 0:01:42]}  Be8 {[%clk 0:02:21]} 23. a5 {[%clk 0:01:41]}  Ne5 {[%clk 0:02:16]} 24. Rfe1 {[%clk 0:01:31]}  Bc6 {[%clk 0:02:06]} 25. f4 {[%clk 0:01:25]}  Nf3+ {[%clk 0:02:05]} 26. Bxf3 {[%clk 0:01:22]}  Bxf3 {[%clk 0:02:06]} 27. Rxd8 {[%clk 0:01:20]}  Rxd8 {[%clk 0:02:07]} 28. Kf2 {[%clk 0:01:19]}  Bc6 {[%clk 0:02:02]} 29. Ke3 {[%clk 0:00:55]}  e5 {[%clk 0:02:00]} 30. Rb1 {[%clk 0:00:51]}  e4 {[%clk 0:01:56]} 31. Rc1 {[%clk 0:00:49]}  Rd3+ {[%clk 0:01:49]} 32. Ke2 {[%clk 0:00:49]}  f5 {[%clk 0:01:46]} 33. Rc2 {[%clk 0:00:29]}  Ke6 {[%clk 0:01:43]} 34. Ke1 {[%clk 0:00:12]}  h6 {[%clk 0:01:43]} 35. Ke2 {[%clk 0:00:12]}  g5 {[%clk 0:01:43]} 36. Ke1 {[%clk 0:00:11]}  gxf4 {[%clk 0:01:42]} 37. gxf4 {[%clk 0:00:11]}  Rf3 {[%clk 0:01:42]} 38. Rf2 {[%clk 0:00:11]}  Rxc3 {[%clk 0:01:41]} 39. Rg2 {[%clk 0:00:12]}  e3 {[%clk 0:01:40]} 40. Rg6+ {[%clk 0:00:12]}  Kf7 {[%clk 0:01:40]} 41. Rg3 {[%clk 0:00:11]}  Bb5 {[%clk 0:01:35]} 42. Kd1 {[%clk 0:00:10]}  e2+ {[%clk 0:01:34]} 43. Kd2 {[%clk 0:00:09]}  Rc2+ {[%clk 0:01:33]} 44. Ke1 {[%clk 0:00:07]}  Rc1+ {[%clk 0:01:33]} 45. Kf2 {[%clk 0:00:07]}  e1=Q+ {[%clk 0:01:32]} 46. Kf3 {[%clk 0:00:07]}  Qe2# {[%clk 0:01:32]} 0-1


[Site "https://www.chess.com"]

[Event "Titled Tuesday Blitz March 07 Early 2023"]
[White "Tymrakiewicz, Rafal"]
[Black "Sielecki, Christof"]
[WhiteFideId "1108832"]
[BlackFideId "4620437"]
[WhiteElo "2151"]
[BlackElo "2443"]
[Result "1-0"]
[Round "10"]
[TimeControl "180+2"]
[Date "2023.03.07"]
[WhiteClock "0:00:32"]
[BlackClock "0:00:13"]

1. e4 {[%clk 0:03:00]}  c5 {[%clk 0:02:59]} 2. d4 {[%clk 0:03:00]}  cxd4 {[%clk 0:02:59]} 3. c3 {[%clk 0:03:01]}  dxc3 {[%clk 0:03:00]} 4. Nxc3 {[%clk 0:03:01]}  e6 {[%clk 0:03:00]} 5. Nf3 {[%clk 0:03:02]}  a6 {[%clk 0:03:01]} 6. Bc4 {[%clk 0:03:02]}  b5 {[%clk 0:03:02]} 7. Bb3 {[%clk 0:03:02]}  Nc6 {[%clk 0:03:02]} 8. O-O {[%clk 0:02:59]}  Na5 {[%clk 0:03:01]} 9. Bc2 {[%clk 0:02:50]}  Bb7 {[%clk 0:03:01]} 10. b3 {[%clk 0:02:40]}  Rc8 {[%clk 0:02:59]} 11. Bb2 {[%clk 0:02:40]}  Nf6 {[%clk 0:02:54]} 12. e5 {[%clk 0:02:37]}  Nd5 {[%clk 0:02:50]} 13. Ne4 {[%clk 0:02:38]}  Be7 {[%clk 0:02:39]} 14. Rc1 {[%clk 0:01:59]}  Nc6 {[%clk 0:02:21]} 15. a3 {[%clk 0:01:57]}  h6 {[%clk 0:02:02]} 16. Qd2 {[%clk 0:01:54]}  a5 {[%clk 0:01:47]} 17. Rfd1 {[%clk 0:01:53]}  b4 {[%clk 0:01:44]} 18. a4 {[%clk 0:01:50]}  Qb6 {[%clk 0:01:31]} 19. Bb1 {[%clk 0:01:41]}  Ba6 {[%clk 0:01:24]} 20. h4 {[%clk 0:01:35]}  Rc7 {[%clk 0:00:59]} 21. Nd6+ {[%clk 0:01:33]}  Bxd6 {[%clk 0:00:41]} 22. exd6 {[%clk 0:01:33]}  Rc8 {[%clk 0:00:38]} 23. Bxg7 {[%clk 0:01:29]}  Rg8 {[%clk 0:00:34]} 24. Qxh6 {[%clk 0:01:29]}  Nc3 {[%clk 0:00:19]} 25. Qh7 {[%clk 0:01:04]}  Rf8 {[%clk 0:00:19]} 26. Rxc3 {[%clk 0:00:54]}  bxc3 {[%clk 0:00:18]} 27. Bxf8 {[%clk 0:00:54]}  Qxb3 {[%clk 0:00:15]} 28. Bc2 {[%clk 0:00:53]}  Qc4 {[%clk 0:00:14]} 29. Be7 {[%clk 0:00:33]}  Nxe7 {[%clk 0:00:13]} 30. Qh8+ {[%clk 0:00:32]}  Ng8 {[%clk 0:00:13]} 31. Qxg8# {[%clk 0:00:32]} 1-0


[Site "https://www.chess.com"]

[Event "Titled Tuesday Blitz March 07 Early 2023"]
[White "Pakleza, Zbigniew"]
[Black "Migot, Tangi"]
[WhiteFideId "1119290"]
[BlackFideId "662445"]
[WhiteElo "2410"]
[BlackElo "2541"]
[Result "1-0"]
[Round "10"]
[TimeControl "180+2"]
[Date "2023.03.07"]
[WhiteClock "0:02:24"]
[BlackClock "0:02:00"]

1. d4 {[%clk 0:03:00]}  Nf6 {[%clk 0:02:58]} 2. Nf3 {[%clk 0:03:01]}  g6 {[%clk 0:02:58]} 3. Bf4 {[%clk 0:03:01]}  Bg7 {[%clk 0:02:57]} 4. e3 {[%clk 0:03:02]}  d6 {[%clk 0:02:57]} 5. Be2 {[%clk 0:03:02]}  O-O {[%clk 0:02:58]} 6. h3 {[%clk 0:03:02]}  c5 {[%clk 0:02:58]} 7. c3 {[%clk 0:03:02]}  Be6 {[%clk 0:02:59]} 8. dxc5 {[%clk 0:03:02]}  dxc5 {[%clk 0:02:58]} 9. Qxd8 {[%clk 0:03:03]}  Rxd8 {[%clk 0:02:59]} 10. a4 {[%clk 0:03:04]}  Nc6 {[%clk 0:02:58]} 11. a5 {[%clk 0:03:04]}  Nd5 {[%clk 0:02:58]} 12. Bg3 {[%clk 0:03:02]}  Bf5 {[%clk 0:02:56]} 13. O-O {[%clk 0:02:51]}  e5 {[%clk 0:02:48]} 14. Nfd2 {[%clk 0:02:44]}  e4 {[%clk 0:02:45]} 15. Bh4 {[%clk 0:02:36]}  Rd7 {[%clk 0:02:41]} 16. g4 {[%clk 0:02:36]}  Be6 {[%clk 0:02:31]} 17. Nxe4 {[%clk 0:02:35]}  h5 {[%clk 0:01:59]} 18. Nxc5 {[%clk 0:02:31]}  Rc7 {[%clk 0:01:59]} 19. Nxe6 {[%clk 0:02:26]}  fxe6 {[%clk 0:02:00]} 20. gxh5 {[%clk 0:02:24]} 1-0


[Site "https://www.chess.com"]

[Event "Titled Tuesday Blitz March 07 Early 2023"]
[White "Lehtosaari, Mauri"]
[Black "Boyer, Mahel"]
[WhiteFideId "501999"]
[BlackFideId "45102422"]
[WhiteElo "2517"]
[BlackElo "2439"]
[Result "0-1"]
[Round "10"]
[TimeControl "180+2"]
[Date "2023.03.07"]
[WhiteClock "0:00:01"]
[BlackClock "0:00:03"]

1. d4 {[%clk 0:03:00]}  d6 {[%clk 0:02:54]} 2. Nf3 {[%clk 0:03:00]}  Nf6 {[%clk 0:02:52]} 3. Bg5 {[%clk 0:02:59]}  Nbd7 {[%clk 0:02:50]} 4. e3 {[%clk 0:02:58]}  h6 {[%clk 0:02:49]} 5. Bh4 {[%clk 0:02:57]}  g5 {[%clk 0:02:49]} 6. Bg3 {[%clk 0:02:57]}  Nh5 {[%clk 0:02:49]} 7. Bd3 {[%clk 0:02:54]}  Bg7 {[%clk 0:02:47]} 8. c3 {[%clk 0:02:54]}  e6 {[%clk 0:02:46]} 9. Ng1 {[%clk 0:02:51]}  Nxg3 {[%clk 0:02:45]} 10. hxg3 {[%clk 0:02:52]}  c5 {[%clk 0:02:44]} 11. Nd2 {[%clk 0:02:51]}  Qe7 {[%clk 0:02:42]} 12. Qe2 {[%clk 0:02:35]}  Rb8 {[%clk 0:02:38]} 13. a4 {[%clk 0:02:30]}  d5 {[%clk 0:02:35]} 14. Ngf3 {[%clk 0:02:25]}  e5 {[%clk 0:02:31]} 15. dxe5 {[%clk 0:02:24]}  Nxe5 {[%clk 0:02:31]} 16. Nxe5 {[%clk 0:02:24]}  Bxe5 {[%clk 0:02:27]} 17. Bb5+ {[%clk 0:02:22]}  Kf8 {[%clk 0:02:27]} 18. Nf3 {[%clk 0:02:17]}  Bf6 {[%clk 0:02:27]} 19. a5 {[%clk 0:02:06]}  a6 {[%clk 0:02:24]} 20. Bd3 {[%clk 0:01:59]}  Kg7 {[%clk 0:02:24]} 21. Bc2 {[%clk 0:01:55]}  b5 {[%clk 0:02:24]} 22. Qd3 {[%clk 0:01:36]}  b4 {[%clk 0:02:17]} 23. O-O {[%clk 0:01:30]}  bxc3 {[%clk 0:02:04]} 24. bxc3 {[%clk 0:01:31]}  Rb2 {[%clk 0:02:05]} 25. Rab1 {[%clk 0:01:29]}  c4 {[%clk 0:02:01]} 26. Qd2 {[%clk 0:01:27]}  Qa3 {[%clk 0:01:55]} 27. Rxb2 {[%clk 0:01:25]}  Qxb2 {[%clk 0:01:56]} 28. Nd4 {[%clk 0:01:25]}  Re8 {[%clk 0:01:37]} 29. Rb1 {[%clk 0:01:15]}  Qa3 {[%clk 0:01:36]} 30. Nf5+ {[%clk 0:00:59]}  Bxf5 {[%clk 0:01:34]} 31. Bxf5 {[%clk 0:01:00]}  Qxa5 {[%clk 0:01:24]} 32. Rb7 {[%clk 0:00:58]}  Re7 {[%clk 0:01:19]} 33. Rxe7 {[%clk 0:00:41]}  Bxe7 {[%clk 0:01:20]} 34. e4 {[%clk 0:00:42]}  Bf6 {[%clk 0:00:55]} 35. exd5 {[%clk 0:00:27]}  Bxc3 {[%clk 0:00:52]} 36. Qd1 {[%clk 0:00:16]}  Bf6 {[%clk 0:00:33]} 37. Bc2 {[%clk 0:00:14]}  Qb6 {[%clk 0:00:23]} 38. d6 {[%clk 0:00:14]}  Bd4 {[%clk 0:00:23]} 39. d7 {[%clk 0:00:11]}  Qd6 {[%clk 0:00:16]} 40. Qg4 {[%clk 0:00:09]}  c3 {[%clk 0:00:11]} 41. Qf5 {[%clk 0:00:08]}  Bf6 {[%clk 0:00:10]} 42. Kh2 {[%clk 0:00:07]}  Kf8 {[%clk 0:00:09]} 43. Kh3 {[%clk 0:00:04]}  a5 {[%clk 0:00:08]} 44. Qxa5 {[%clk 0:00:03]}  Qxd7+ {[%clk 0:00:08]} 45. Bf5 {[%clk 0:00:04]}  Qd4 {[%clk 0:00:07]} 46. Qa8+ {[%clk 0:00:03]}  Kg7 {[%clk 0:00:07]} 47. Qf3 {[%clk 0:00:03]}  Qd2 {[%clk 0:00:06]} 48. Qe4 {[%clk 0:00:03]}  Qxf2 {[%clk 0:00:05]} 49. Qd3 {[%clk 0:00:02]}  Qg1 {[%clk 0:00:05]} 50. Kg4 {[%clk 0:00:01]}  Qe1 {[%clk 0:00:03]} 0-1


[Site "https://www.chess.com"]